bitfinex-derivatives/quotes_SOLF0:USTF0_20250105
["timestamp","ask_amount","ask_price","bid_price","bid_amount"]
[1736040811617,7.14055956,216.58,216.51,7.14055956]
[1736040812521,7.14055956,216.58,216.53,2.3094]
[1736040813419,9.44945956,216.58,216.53,2.3094]
[1736040813614,9.44945956,216.58,216.45,2.58]
[1736040813615,7.14055956,216.56,216.45,2.58]
[1736040813815,7.14055956,216.56,216.48,7.14055956]
[1736040814421,2.3093,216.55,216.49,2.3098]
[1736040814825,2.3093,216.55,216.48,7.14055956]
[1736040816422,2.3093,216.55,216.5,2.3097]
[1736040817823,2.3093,216.55,216.51,2.3097]
[1736040818019,7.14055956,216.56,216.5,7.14055956]
[1736040818219,2.309,216.58,216.53,2.3094]
[1736040818420,9.44955956,216.58,216.53,2.3094]
[1736040818823,3.8103,216.6,216.55,2.3092]
[1736040819020,10.95085956,216.6,216.55,2.3092]
[1736040819925,9.44935956,216.6,216.55,2.3092]
[1736040821524,2.3088,216.59,216.53,2.3093]
[1736040823127,2.3088,216.59,216.54,2.3093]
[1736040823529,7.14055956,216.6,216.54,2.3093]
[1736040823729,9.44925956,216.6,216.54,2.3093]
[1736040825831,7.14055956,216.58,216.54,2.3093]
[1736040826133,7.14055956,216.56,216.48,7.14055956]
[1736040826333,2.3093,216.55,216.42,9.33647765]
[1736040826636,2.3093,216.55,216.5,2.3098]
[1736040827731,7.14055956,216.56,216.48,7.14055956]
[1736040827931,9.44995956,216.54,216.48,9.45045956]
[1736040828431,7.14055956,216.54,216.48,9.45045956]
[1736040828734,2.3095,216.53,216.48,2.3099]
[1736040829329,7.14055956,216.54,216.46,7.14055956]
[1736040829530,9.45015956,216.52,216.46,7.14055956]
[1736040830028,7.14055956,216.52,216.48,2.31]
[1736040835741,7.14055956,216.52,216.46,7.14055956]
[1736040836038,7.14055956,216.54,216.5,2.3098]
[1736040847140,9.45015956,216.52,216.46,2.3101]
[1736040847351,7.14055956,216.5,216.46,2.3101]
[1736040848141,11.41118331,216.57,216.45,7.14055956]
[1736040848345,8.83118331,216.57,216.51,7.14055956]
[1736040848539,12.73746854,216.58,216.51,7.14055956]
[1736040849344,7.14055956,216.58,216.51,7.14055956]
[1736040849544,7.14055956,216.58,216.54,2.3093]
[1736040850040,9.44945956,216.58,216.52,2.3095]
[1736040850243,7.14055956,216.56,216.52,2.3095]
[1736040851747,7.14055956,216.54,216.51,2.3097]
[1736040851940,7.14055956,216.54,216.48,2.58]
[1736040852144,7.14055956,216.52,216.48,2.58]
[1736040852345,7.14055956,216.52,216.45,7.14055956]
[1736040852739,7.14055956,216.52,216.48,2.3099]
[1736040855042,7.14055956,216.52,216.45,7.14055956]
[1736040855343,7.14055956,216.5,216.46,2.3101]
[1736040856140,7.14055956,216.47,216.31,126.61022276]
[1736040856346,7.14055956,216.37,216.35,25.7131106]
[1736040856541,9.72055956,216.37,216.35,25.7131106]
[1736040856941,12.03175956,216.37,216.35,25.7131106]
[1736040857348,9.72055956,216.37,216.24,1.4838]
[1736040857542,7.14055956,216.32,216.24,1.4838]
[1736040857750,9.72055956,216.32,216.27,2.3122]
[1736040857955,9.72055956,216.32,216.24,1.4838]
[1736040858143,2.58,216.32,216.24,1.4838]
[1736040859151,2.58,216.32,216.29,2.3119]
[1736040859446,8.8257399,216.45,216.29,7.14055956]
[1736040859652,7.14055956,216.36,216.31,2.3118]
[1736040859954,9.72055956,216.36,216.29,7.14055956]
[1736040861149,9.72055956,216.36,216.32,2.3116]
[1736040861349,7.14055956,216.36,216.32,2.3116]
[1736040867454,2.58,216.37,216.32,2.3116]
[1736040867655,7.14055956,216.35,216.32,2.3116]
[1736040868661,7.14055956,216.35,216.29,7.14055956]
[1736040868859,7.14055956,216.35,216.33,2.3116]
[1736040869760,9.72055956,216.37,216.34,2.3115]
[1736040872460,7.14055956,216.37,216.34,2.3115]
[1736040873461,7.14055956,216.37,216.35,2.3113]
[1736040873662,7.14055956,216.39,216.31,7.14055956]
[1736040873857,7.14055956,216.39,216.33,7.14055956]
[1736040874462,7.14055956,216.39,216.33,8.53075956]
[1736040875556,7.14055956,216.39,216.37,2.3111]
[1736040876164,7.14055956,216.39,216.38,2.311]
[1736040882468,7.14055956,216.42,216.35,7.14055956]
[1736040883167,7.14055956,216.42,216.41,2.3107]
[1736040883964,1.7052,216.54,216.35,7.14055956]
[1736040883965,2.58,216.46,216.35,7.14055956]
[1736040884171,7.14055956,216.43,216.35,7.14055956]
[1736040884372,7.14055956,216.43,216.37,7.14055956]
[1736040885371,7.14055956,216.43,216.42,2.3106]
[1736040888866,2.3098,216.5,216.39,7.14055956]
[1736040889069,7.14055956,216.45,216.44,2.3104]
[1736040895286,7.14055956,216.45,216.4,1.3684]
[1736040895583,7.14055956,216.45,216.41,2.3106]
[1736040896083,7.14055956,216.45,216.42,2.3106]
[1736040898786,7.14055956,216.45,216.4,1.3684]
[1736040898989,7.14055956,216.45,216.44,2.3104]
[1736040899291,7.14055956,216.47,216.4,1.3684]
[1736040900288,2.3097,216.51,216.46,2.3102]
[1736040900492,7.14055956,216.49,216.46,2.3102]
[1736040901490,7.14055956,216.47,216.46,2.3102]
[1736040902090,2.6,216.52,216.42,7.14055956]
[1736040902294,7.14055956,216.5,216.42,7.14055956]
[1736040903495,7.14055956,216.5,216.48,2.3099]
[1736040905195,7.14055956,216.49,216.48,2.3099]
[1736040908100,7.14055956,216.49,216.44,2.3104]
[1736040908296,7.14055956,216.49,216.42,7.14055956]
[1736040908892,7.14055956,216.49,216.41,5.4982]
[1736040909100,7.14055956,216.49,216.46,2.3102]
[1736040910507,7.14055956,216.47,216.41,2.8982]
[1736040911103,7.14055956,216.47,216.45,2.3103]
[1736040912605,7.14055956,216.47,216.41,2.8982]
[1736040913407,7.14055956,216.47,216.44,2.3104]
[1736040918112,7.14055956,216.45,216.41,2.3107]
[1736040918411,7.14055956,216.43,216.35,7.14055956]
[1736040918609,7.14055956,216.41,216.33,7.14055956]
[1736040919112,7.14055956,216.41,216.35,2.3113]
[1736040919311,7.14055956,216.41,216.33,7.14055956]
[1736040919806,7.14055956,216.41,216.38,2.311]
[1736040922406,7.14055956,216.43,216.37,7.14055956]
[1736040922608,7.14055956,216.45,216.37,7.14055956]
[1736040923110,7.14055956,216.45,216.39,7.14055956]
[1736040924511,7.14055956,216.45,216.42,2.3105]
[1736040924809,7.14055956,216.47,216.39,7.14055956]
[1736040925008,7.14055956,216.47,216.45,2.3103]
[1736040926013,2.56,216.51,216.41,7.14055956]
[1736040926214,7.14055956,216.48,216.46,2.3102]
[1736040927711,7.14055956,216.48,216.44,2.3103]
[1736040928509,7.14055956,216.46,216.39,7.14055956]
[1736040928705,7.14055956,216.44,216.37,9.70055956]
[1736040929109,7.14055956,216.46,216.39,7.14055956]
[1736040930517,7.14055956,216.46,216.42,2.3105]
[1736040933409,7.14055956,216.44,216.33,2.3115]
[1736040933615,7.14055956,216.42,216.35,7.14055956]
[1736040934417,7.14055956,216.42,216.38,2.311]
[1736040936319,7.14055956,216.42,216.37,2.3111]
[1736040936509,2.3105,216.43,216.37,2.3111]
[1736040936510,7.14055956,216.4,216.37,2.3111]
[1736040937713,7.14055956,216.38,216.29,2.56]
[1736040937916,7.14055956,216.38,216.3,9.70055956]
[1736040939016,7.14055956,216.38,216.35,2.3114]
[1736040941519,7.14055956,216.38,216.33,2.3115]
[1736040941822,7.14055956,216.36,216.33,2.3115]
[1736040946126,7.14055956,216.38,216.33,2.3115]
[1736040947330,7.14055956,216.36,216.33,2.3115]
[1736040948130,7.14055956,216.36,216.29,7.14055956]
[1736040948429,2.56,216.41,216.31,2.3117]
[1736040948430,7.14055956,216.34,216.31,2.3117]
[1736040952932,7.14055956,216.34,216.17,4.6266]
[1736040953235,7.14055956,216.31,216.18,2.56]
[1736040953538,7.14055956,216.31,216.11,142.44933181]
[1736040953727,7.14055956,216.31,216.21,7.14055956]
[1736040953728,7.14055956,216.29,216.21,7.14055956]
[1736040953937,7.14055956,216.29,216.21,9.70055956]
[1736040954134,7.14055956,216.29,216.21,7.14055956]
[1736040954331,7.14055956,216.27,216.19,2.56]
[1736040954532,7.14055956,216.27,216.13,25.64235316]
[1736040954733,7.14055956,216.27,216.19,7.14055956]
[1736040955129,7.14055956,216.27,216.21,2.3129]
[1736040955333,7.14055956,216.25,216.17,9.70055956]
[1736040955829,7.14055956,216.25,216.2,2.313]
[1736040956640,7.14055956,216.25,216.17,7.14055956]
[1736040957438,7.14055956,216.25,216.2,2.3129]
[1736040958040,7.14055956,216.25,216.22,2.3127]
[1736040958337,2.56,216.26,216.22,2.3127]
[1736040958932,7.14055956,216.28,216.24,2.3125]
[1736040959129,7.14055956,216.28,216.21,7.14055956]
[1736040959330,7.14055956,216.26,216.22,2.3127]
[1736040962037,7.14055956,216.26,216.19,7.14055956]
[1736040962740,7.14055956,216.26,216.21,2.3129]
[1736040963039,7.14055956,216.26,216.19,7.14055956]
[1736040964243,7.14055956,216.26,216.21,2.3129]
[1736040964440,7.14055956,216.26,216.19,7.14055956]
[1736040965240,7.14055956,216.26,216.2,2.3129]
[1736040965638,7.14055956,216.26,216.19,7.14055956]
[1736040965838,7.14055956,216.26,216.21,2.3128]
[1736040970346,7.14055956,216.24,216.18,2.3131]
[1736040971243,7.14055956,216.22,216.18,2.3131]
[1736040971839,7.14055956,216.2,216.07,2.9212]
[1736040972046,7.14055956,216.18,216.11,7.14055956]
[1736040972650,7.14055956,216.18,216.08,2.56]
[1736040972943,7.14055956,216.2,216.15,2.3135]
[1736040973949,7.14055956,216.2,216.16,2.3134]
[1736040974340,2.56,216.21,215.99,6.42827765]
[1736040974552,7.14055956,216.13,215.99,6.42827765]
[1736040974850,2.56,216.12,216.04,7.14055956]
[1736040975444,7.14055956,216.09,216.04,2.3146]
[1736040975651,7.14055956,216.09,216.02,7.14055956]
[1736040977354,7.14055956,216.07,215.98,7.14055956]
[1736040977555,7.14055956,216.05,215.97,7.14055956]
[1736040977855,2.62,216.04,215.97,7.14055956]
[1736040978244,2.62,216.03,215.95,1.5084]
[1736040978451,2.62,216.03,215.99,2.3152]
[1736040978850,2.62,216.03,215.97,7.14055956]
[1736040979551,2.62,216.03,215.95,1.5084]
[1736040979552,2.62,216.04,216.02,2.3149]
[1736040979747,2.62,216.05,216.02,2.3149]
[1736040979950,2.62,216.05,215.99,7.14055956]
[1736040981053,2.62,216.05,215.95,1.5084]
[1736040981250,2.62,216.05,215.99,7.14055956]
[1736040981452,2.62,216.05,216.03,2.3147]
[1736040982657,7.14055956,216.06,216.03,2.3147]
[1736040982856,2.62,216.05,216.03,2.3147]
[1736040983555,2.62,216.05,215.99,7.14055956]
[1736040983855,2.62,216.05,216.02,2.3148]
[1736040985262,2.62,216.05,216.01,2.315]
[1736040985658,7.14055956,216.04,216.01,2.315]
[1736040986657,7.14055956,216.02,215.99,2.3152]
[1736040987853,7.14055956,216.04,215.97,7.14055956]
[1736040988058,2.62,216.03,215.97,7.14055956]
[1736040988964,2.62,216.03,215.95,1.5084]
[1736040989155,2.62,216.03,215.97,7.14055956]
[1736040989662,2.62,216.03,216.01,2.3149]
[1736040990063,3.7094,216.11,216.04,2.3146]
[1736040990266,7.14055956,216.06,216.04,2.3146]
[1736040990559,2.62,216.05,216.04,2.3146]
[1736040992060,2.62,216.05,215.97,7.14055956]
[1736040992258,7.14055956,216.04,215.97,7.14055956]
[1736040992561,7.14055956,216.04,215.97,2.3154]
[1736040992762,7.14055956,216.04,215.96,7.14055956]
[1736040993271,4.9346,216.05,215.97,2.3153]
[1736040993464,7.14055956,216.01,215.97,2.3153]
[1736040993664,2.62,216.0,215.97,2.3153]
[1736040994168,7.14055956,215.99,215.97,2.3153]
[1736040994568,7.14055956,215.99,215.95,2.3156]
[1736040994761,7.14055956,215.97,215.95,2.3156]
[1736040994958,7.14055956,215.97,215.9,7.14055956]
[1736040995163,7.14055956,215.97,215.93,2.3158]
[1736040995769,7.14055956,215.95,215.91,2.316]
[1736040995962,9.76055956,215.95,215.88,7.14055956]
[1736040996161,9.76055956,215.95,215.87,1.4081]
[1736040996357,7.14055956,215.93,215.9,2.3161]
[1736040996563,7.14055956,215.93,215.87,1.4081]
[1736040996766,7.14055956,215.93,215.86,10.03275956]
[1736040997069,7.14055956,215.91,215.78,1.4878]
[1736040997261,2.62,215.9,215.83,7.14055956]
[1736040997668,2.62,215.9,215.87,2.3165]
[1736040998170,2.62,215.9,215.83,7.14055956]
[1736040998468,2.62,215.9,215.79,2.8479]
[1736040998664,2.62,215.9,215.84,7.14055956]
[1736040998865,7.14055956,215.87,215.65,4.6377]
[1736040999063,2.62,215.9,215.77,7.14055956]
[1736040999064,7.14055956,215.85,215.77,7.14055956]
[1736040999266,2.62,215.84,215.77,7.14055956]
[1736040999861,9.76055956,215.85,215.79,7.14055956]
[1736041000061,9.76055956,215.85,215.71,2.62]
[1736041000062,13.87,216.01,215.81,7.14055956]
[1736041000261,2.3155,215.97,215.87,2.3165]
[1736041000466,7.14055956,215.91,215.87,2.3165]
[1736041000667,9.76055956,215.91,215.87,2.3165]
[1736041000871,9.76055956,215.91,215.83,7.14055956]
[1736041001173,13.87,216.02,215.85,7.14055956]
[1736041001373,7.14055956,215.92,215.87,2.3165]
[1736041001571,2.62,215.91,215.87,2.3165]
[1736041003374,2.62,215.91,215.85,7.14055956]
[1736041003575,2.62,215.91,215.85,9.45715956]
[1736041003776,13.87,216.13,215.85,7.14055956]
[1736041003977,7.14055956,215.96,215.9,2.3161]
[1736041004274,9.76055956,215.96,215.9,2.3161]
[1736041005065,7.14055956,215.92,215.86,7.14055956]
[1736041005265,7.14055956,215.92,215.87,2.3164]
[1736041006367,7.14055956,215.9,215.77,4.3576]
[1736041006570,7.14055956,215.87,215.83,2.3169]
[1736041008772,2.3162,215.9,215.83,2.3169]
[1736041009078,7.14055956,215.87,215.83,2.3169]
[1736041012878,2.3162,215.9,215.83,2.3169]
[1736041013075,7.14055956,215.88,215.83,2.3169]
[1736041014673,7.14055956,215.95,215.87,7.14055956]
[1736041015675,1.6351,216.06,215.89,7.14055956]
[1736041015676,2.66,215.96,215.89,7.14055956]
[1736041015980,2.66,215.97,215.91,7.14055956]
[1736041016476,7.14055956,215.98,215.91,7.14055956]
[1736041017476,7.14055956,215.98,215.94,2.3158]
[1736041018380,7.14055956,215.96,215.9,3.7782]
[1736041018585,7.14055956,215.96,215.9,1.4621]
[1736041018972,7.14055956,215.96,215.92,2.3159]
[1736041020574,7.14055956,215.96,215.9,3.7783]
[1736041020777,7.14055956,215.96,215.9,1.4621]
[1736041021180,7.14055956,215.96,215.91,2.3161]
[1736041023085,7.14055956,215.96,215.93,2.3158]
[1736041023384,8.75536648,216.05,215.94,7.14055956]
[1736041023582,7.14055956,216.04,215.96,7.14055956]
[1736041024281,7.14055956,216.04,216.01,2.315]
[1736041024482,2.3142,216.09,216.01,2.315]
[1736041024781,7.14055956,216.03,215.97,3.7826]
[1736041024982,7.14055956,216.01,215.97,3.7826]
[1736041025183,2.66,216.08,215.97,3.7826]
[1736041025480,7.14055956,216.03,215.97,1.4673]
[1736041027485,7.14055956,216.03,215.99,2.3152]
[1736041027786,7.14055956,216.05,215.97,1.4673]
[1736041028486,7.14055956,216.05,216.0,2.3151]
[1736041031592,7.14055956,216.07,216.01,2.3149]
[1736041032484,7.14055956,216.05,216.01,2.3149]
[1736041032682,7.14055956,216.05,216.0,2.3151]
[1736041032886,7.14055956,216.05,215.97,4.345]
[1736041032887,7.14055956,216.05,215.98,7.14055956]
[1736041033087,7.14055956,216.07,215.98,7.14055956]
[1736041033287,7.14055956,216.07,216.02,2.3149]
[1736041033985,7.14055956,216.05,216.0,2.315]
[1736041034890,7.14055956,216.07,216.02,2.3149]
[1736041036987,7.14055956,216.07,215.98,7.14055956]
[1736041037191,7.14055956,216.07,216.03,2.3147]
[1736041038892,7.14055956,216.05,216.0,2.315]
[1736041039088,7.14055956,216.03,216.0,2.315]
[1736041039395,7.14055956,216.03,215.94,7.14055956]
[1736041039396,7.14055956,216.01,215.93,9.78055956]
[1736041039693,7.14055956,216.01,215.95,2.3156]
[1736041039898,7.14055956,216.01,215.93,9.78055956]
[1736041040194,7.14055956,216.01,215.93,7.14055956]
[1736041040396,7.14055956,216.01,215.95,2.3156]
[1736041041790,7.14055956,216.01,215.93,9.78055956]
[1736041042090,7.14055956,216.01,215.96,2.3155]
[1736041042490,7.14055956,216.01,215.95,2.3156]
[1736041043593,2.3149,216.02,215.95,2.3156]
[1736041043898,7.14055956,215.99,215.95,2.3156]
[1736041044487,7.14055956,215.99,215.94,2.3157]
[1736041044991,7.14055956,215.97,215.92,2.3159]
[1736041045297,7.14055956,215.97,215.9,7.14055956]
[1736041045498,7.14055956,215.95,215.88,7.14055956]
[1736041045701,7.14055956,215.95,215.91,2.3161]
[1736041047296,7.14055956,215.93,215.87,2.3164]
[1736041047497,7.14055956,215.91,215.85,7.14055956]
[1736041048395,7.14055956,215.91,215.86,2.3166]
[1736041049288,7.14055956,215.91,215.85,2.3167]
[1736041050395,7.14055956,215.89,215.85,2.3167]
[1736041050596,7.14055956,215.89,215.83,2.3169]
[1736041051897,7.14055956,215.89,215.79,2.64]
[1736041052100,7.14055956,215.89,215.81,7.14055956]
[1736041052300,7.14055956,215.87,215.8,7.14055956]
[1736041053088,7.14055956,215.87,215.82,2.317]
[1736041055198,7.14055956,215.85,215.78,2.3174]
[1736041055399,7.14055956,215.85,215.77,7.14055956]
[1736041056293,7.14055956,215.85,215.79,2.3174]
[1736041056695,7.14055956,215.81,215.73,2.7814]
[1736041056898,7.14055956,215.81,215.74,7.14055956]
[1736041057400,7.14055956,215.83,215.76,7.14055956]
[1736041058411,7.14055956,215.83,215.78,2.3174]
[1736041059399,7.14055956,215.83,215.76,7.14055956]
[1736041059400,7.14055956,215.83,215.79,2.3174]
[1736041059799,7.14055956,215.83,215.76,7.14055956]
[1736041060607,7.14055956,215.83,215.79,2.3174]
[1736041060907,4.0,216.06,215.73,5.4214]
[1736041060908,13.91,216.02,215.8,7.14055956]
[1736041061100,13.91,216.02,215.78,2.64]
[1736041061101,7.14055956,215.9,215.84,2.3168]
[1736041061299,7.14055956,215.9,215.82,7.14055956]
[1736041061699,7.14055956,215.9,215.84,2.3168]
[1736041061897,7.14055956,215.9,215.82,7.14055956]
[1736041061898,7.14055956,215.9,215.83,1.507]
[1736041063103,7.14055956,215.9,215.84,2.3167]
[1736041068209,7.14055956,215.9,215.85,2.3167]
[1736041073405,7.14055956,215.88,215.83,2.3169]
[1736041076209,7.14055956,215.88,215.84,2.3168]
[1736041080023,7.14055956,215.88,215.82,2.317]
[1736041080319,7.14055956,215.86,215.82,2.317]
[1736041081120,7.14055956,215.86,215.79,1.4349]
[1736041081314,7.14055956,215.86,215.8,2.3172]
[1736041081508,7.14055956,215.86,215.79,1.4349]
[1736041082512,7.14055956,215.86,215.81,2.3171]
[1736041086532,2.3164,215.88,215.79,1.4349]
[1736041086733,7.14055956,215.86,215.82,2.317]
[1736041091433,7.14055956,215.86,215.81,2.3171]
[1736041093131,7.14055956,215.84,215.79,2.3173]
[1736041093331,2.64,215.92,215.79,2.3173]
[1736041093332,7.14055956,215.82,215.79,2.3173]
[1736041096933,7.14055956,215.82,215.75,2.64]
[1736041097136,7.14055956,215.82,215.8,2.3173]
[1736041097841,7.14055956,215.82,215.75,2.64]
[1736041097842,7.14055956,215.86,215.78,7.14055956]
[1736041098436,7.14055956,215.86,215.84,2.3168]
[1736041098632,7.14055956,215.88,215.84,2.3168]
[1736041099439,2.62,215.9,215.82,2.3169]
[1736041099440,7.14055956,215.86,215.82,2.3169]
[1736041099639,7.14055956,215.84,215.82,2.3169]
[1736041099841,7.14055956,215.86,215.8,2.62]
[1736041102045,7.14055956,215.86,215.82,2.317]
[1736041103852,7.14055956,215.86,215.8,2.62]
[1736041104052,7.14055956,215.86,215.83,2.3169]
[1736041104547,2.62,215.9,215.8,2.62]
[1736041104752,7.14055956,215.87,215.84,2.3167]
[1736041105248,7.14055956,215.87,215.85,2.3167]
[1736041105553,7.14055956,215.88,215.85,2.3167]
[1736041106343,7.14055956,215.88,215.86,2.3166]
[1736041106547,2.3161,215.91,215.81,8.52005956]
[1736041106548,7.14055956,215.89,215.81,8.52005956]
[1736041106748,7.14055956,215.89,215.81,9.95095956]
[1736041107452,7.14055956,215.89,215.87,2.3165]
[1736041108450,8.80116078,215.96,215.83,7.14055956]
[1736041108656,7.14055956,215.9,215.83,7.14055956]
[1736041109159,7.14055956,215.94,215.87,7.14055956]
[1736041109351,7.14055956,215.94,215.87,9.76055956]
[1736041109849,7.14055956,215.94,215.89,2.3163]
[1736041110046,7.14055956,215.94,215.87,9.76055956]
[1736041110854,7.14055956,215.94,215.88,1.3762]
[1736041111254,7.14055956,215.94,215.89,1.414]
[1736041111851,7.14055956,215.94,215.91,2.316]
[1736041112252,7.14055956,215.92,215.89,1.414]
[1736041113361,7.14055956,215.92,215.9,2.3161]
[1736041113960,7.14055956,215.92,215.89,3.7302]
[1736041114259,7.14055956,215.92,215.89,1.414]
[1736041114957,7.14055956,215.94,215.9,2.3162]
[1736041115458,7.30138719,215.97,215.91,2.316]
[1736041115757,7.14055956,215.98,215.89,8.55455956]
[1736041117657,7.14055956,215.98,215.92,2.3159]
[1736041118158,7.14055956,215.98,215.89,8.55455956]
[1736041118358,7.14055956,215.98,215.93,2.3159]
[1736041120557,4.9349,216.02,215.95,2.3156]
[1736041120761,7.14055956,215.98,215.95,2.3156]
[1736041121955,7.14055956,215.98,215.92,2.3159]
[1736041122161,7.14055956,215.96,215.9,1.407]
[1736041122462,7.14055956,215.96,215.89,1.414]
[1736041123465,7.14055956,215.96,215.9,2.3161]
[1736041124263,7.14055956,215.94,215.9,2.3161]
[1736041131077,2.3155,215.97,215.9,2.3161]
[1736041131276,7.14055956,215.95,215.9,2.3161]
[1736041131877,7.14055956,215.95,215.88,2.3164]
[1736041135579,7.14055956,215.95,215.89,2.3162]
[1736041136080,7.14055956,215.95,215.89,2.3163]
[1736041136281,7.14055956,215.95,215.87,2.6]
[1736041136282,2.3155,215.97,215.88,7.14055956]
[1736041136479,9.45605956,215.97,215.88,7.14055956]
[1736041136675,1.4697,216.03,215.92,7.14055956]
[1736041136875,7.14055956,216.02,215.96,2.3155]
[1736041137076,7.14055956,216.04,215.96,7.14055956]
[1736041138379,9.91252389,216.05,215.96,7.14055956]
[1736041138380,7.14055956,216.02,215.96,7.14055956]
[1736041138584,7.14055956,216.02,215.97,2.3154]
[1736041139479,7.14055956,216.0,215.95,2.3156]
[1736041139687,7.14055956,215.98,215.92,9.74055956]
[1736041139975,7.14055956,215.98,215.92,2.6]
[1736041140582,7.14055956,215.93,215.88,1.4394]
[1736041141082,2.6,215.97,215.86,7.14055956]
[1736041141283,7.14055956,215.94,215.86,7.14055956]
[1736041141483,7.14055956,215.94,215.88,2.3164]
[1736041142084,7.14055956,215.94,215.9,2.3162]
[1736041144386,9.45645956,215.94,215.88,2.3163]
[1736041145385,7.14055956,215.92,215.86,2.3165]
[1736041146479,9.45655956,215.92,215.86,2.3165]
[1736041147587,9.45655956,215.92,215.85,2.3167]
[1736041150688,9.45655956,215.92,215.86,2.3166]
[1736041150892,7.14055956,215.9,215.86,2.3166]
[1736041151588,7.14055956,215.9,215.76,4.3855]
[1736041151789,7.14055956,215.86,215.78,7.14055956]
[1736041153490,7.14055956,215.86,215.81,2.3171]
[1736041154290,7.14055956,215.84,215.79,2.3173]
[1736041154890,7.14055956,215.84,215.8,2.3173]
[1736041155686,7.14055956,215.84,215.81,2.3171]
[1736041155886,7.14055956,215.86,215.81,2.3171]
[1736041157188,7.14055956,215.86,215.82,2.317]
[1736041159393,7.14055956,215.86,215.83,2.3169]
[1736041161790,7.14055956,215.89,215.81,7.14055956]
[1736041161996,2.6,215.91,215.81,7.14055956]
[1736041162297,7.14055956,215.9,215.81,7.14055956]
[1736041162495,2.6,215.93,215.81,7.14055956]
[1736041162696,7.14055956,215.9,215.81,7.14055956]
[1736041162887,7.14055956,215.92,215.85,7.14055956]
[1736041164496,7.14055956,215.92,215.88,2.3163]
[1736041168898,7.14055956,215.92,215.84,7.14055956]
[1736041170397,7.14055956,215.92,215.86,2.3166]
[1736041170699,7.14055956,215.92,215.84,7.14055956]
[1736041171490,7.14055956,215.92,215.87,2.3164]
[1736041173200,7.14055956,215.92,215.84,7.14055956]
[1736041173394,7.14055956,215.92,215.89,2.3163]
[1736041173804,7.14055956,215.94,215.88,7.14055956]
[1736041174807,7.14055956,215.94,215.86,7.14055956]
[1736041175402,7.14055956,215.94,215.9,2.3161]
[1736041176404,7.14055956,215.94,215.86,7.14055956]
[1736041176602,7.14055956,215.92,215.88,2.3163]
[1736041181210,7.14055956,215.92,215.83,1.4943]
[1736041181211,9.45685956,215.89,215.81,2.3171]
[1736041181509,7.14055956,215.85,215.81,2.3171]
[1736041182709,7.14055956,215.85,215.79,2.3173]
[1736041182909,7.14055956,215.83,215.79,2.3173]
[1736041184808,7.14055956,215.85,215.79,2.3173]
[1736041185011,7.14055956,215.85,215.77,4.0809]
[1736041185012,7.14055956,215.85,215.78,7.14055956]
[1736041185213,7.14055956,215.87,215.82,2.317]
[1736041186611,2.3162,215.91,215.84,2.3168]
[1736041186808,2.3162,215.91,215.79,2.6]
[1736041186809,7.14055956,215.89,215.82,7.14055956]
[1736041188415,7.14055956,215.89,215.85,2.3167]
[1736041190115,7.14055956,215.91,215.82,7.14055956]
[1736041190307,2.6,215.95,215.84,7.14055956]
[1736041190508,7.14055956,215.89,215.79,2.6]
[1736041190706,7.14055956,215.89,215.85,2.3166]
[1736041191113,9.45665956,215.91,215.85,2.3166]
[1736041195429,2.6,215.94,215.83,7.14055956]
[1736041195627,7.14055956,215.91,215.83,7.14055956]
[1736041196431,7.14055956,215.91,215.86,2.3166]
[1736041196932,7.14055956,215.91,215.83,7.14055956]
[1736041197127,2.3162,215.9,215.83,7.14055956]
[1736041197427,2.3162,215.9,215.77,1.4809]
[1736041197627,7.14055956,215.87,215.77,4.0809]
[1736041197827,7.14055956,215.87,215.79,7.14055956]
[1736041198531,7.14055956,215.87,215.81,2.3171]
[1736041201232,7.14055956,215.85,215.81,2.3171]
[1736041201830,7.14055956,215.83,215.69,25.64235316]
[1736041202032,7.14055956,215.83,215.75,7.14055956]
[1736041202235,7.14055956,215.85,215.78,2.3174]
[1736041202430,7.14055956,215.85,215.76,2.6]
[1736041202431,7.14055956,215.85,215.77,7.14055956]
[1736041203535,7.14055956,215.85,215.77,9.45805956]
[1736041203536,9.45725956,215.85,215.77,9.45805956]
[1736041205134,7.14055956,215.83,215.77,2.3175]
[1736041205433,7.14055956,215.81,215.74,7.14055956]
[1736041206038,7.14055956,215.81,215.75,2.3178]
[1736041209132,7.14055956,215.77,215.59,126.61022276]